bitfinex/quotes_ETHUSD_20260226
["timestamp","ask_amount","ask_price","bid_price","bid_amount"]
[1772127653304,1.25504161,1992.0,1991.0,3.96538022]
[1772127653501,1.25504161,1992.0,1990.9,1.59041799]
[1772127653502,0.001,1992.2,1991.5,3.96538022]
[1772127653733,0.001,1992.2,1991.6,1.25527214]
[1772127654811,0.001,1992.2,1991.6,5.22065236]
[1772127656253,6.90631954,1992.4,1991.6,5.22065236]
[1772127656254,0.001,1992.4,1991.9,3.96538022]
[1772127657218,0.001,1992.4,1992.0,3.96538022]
[1772127657843,0.001,1992.4,1992.1,1.25495708]
[1772127658043,0.001,1992.4,1991.9,6.61064232]
[1772127658044,0.001,1992.4,1991.9,1.255032]
[1772127658751,0.001,1992.4,1992.0,3.96538022]
[1772127660051,0.001,1992.4,1992.1,1.25495708]
[1772127660458,0.001,1992.8,1992.1,5.2203373]
[1772127660670,0.001,1992.8,1992.2,5.33138022]
[1772127660874,0.001,1992.8,1992.2,1.366]
[1772127661539,0.001,1992.8,1992.3,3.96538022]
[1772127662140,0.001,1992.8,1992.4,1.25476811]
[1772127662739,4.01450122,1992.8,1992.0,1.25499471]
[1772127662945,4.01450122,1992.8,1991.9,2.62303278]
[1772127663648,4.01350122,1992.7,1991.9,2.62303278]
[1772127664385,5.26814105,1992.7,1991.9,2.62303278]
[1772127664776,5.26808388,1992.7,1991.9,6.588413]
[1772127665253,5.26808358,1992.7,1991.9,6.588413]
[1772127665448,0.001,1992.8,1992.1,3.96538022]
[1772127665680,0.001,1992.8,1992.4,3.96538022]
[1772127665887,4.01350122,1993.3,1992.3,1.59041799]
[1772127665888,5.26772913,1993.3,1992.5,5.55579821]
[1772127666472,5.26772913,1993.3,1992.6,1.25464217]
[1772127666473,4.01350122,1993.3,1992.6,1.25464217]
[1772127666682,2.88619009,1993.4,1992.6,5.22002239]
[1772127667575,6.89969131,1993.4,1992.6,5.22002239]
[1772127667882,4.01350122,1993.3,1992.4,5.01895888]
[1772127668252,4.01350122,1993.3,1992.4,8.9843391]
[1772127668985,1.25426449,1993.2,1992.4,8.9843391]
[1772127669673,9.03034266,1993.3,1992.5,3.9919197]
[1772127669674,5.26770379,1993.3,1992.5,3.9919197]
[1772127669846,4.01350122,1993.3,1992.5,3.9919197]
[1772127670462,0.001,1993.4,1992.7,3.9919197]
[1772127670676,1.25513915,1993.4,1992.7,3.9919197]
[1772127671072,0.001,1993.4,1992.8,1.25451625]
[1772127672182,0.001,1993.3,1992.8,1.25451625]
[1772127672387,4.01115355,1993.2,1992.4,2.6247317]
[1772127673092,4.01115355,1993.0,1992.4,2.6247317]
[1772127673288,4.01115355,1993.0,1992.2,1.25484927]
[1772127673468,4.01115355,1993.0,1992.1,1.25491262]
[1772127675123,4.01115355,1992.9,1992.1,1.25491262]
[1772127675409,4.01115355,1992.7,1992.0,2.62709519]
[1772127676376,4.01115355,1992.7,1992.0,6.61901489]
[1772127676578,4.01115355,1993.0,1992.1,3.9919197]
[1772127676776,0.001,1993.4,1992.3,3.9919197]
[1772127676777,1.25517336,1993.4,1992.3,3.9919197]
[1772127677080,4.01115355,1993.2,1992.1,2.64766834]
[1772127677284,5.26548097,1993.1,1992.2,1.25489408]
[1772127677690,5.26548097,1993.1,1992.3,3.9919197]
[1772127677890,4.01115355,1993.0,1992.1,1.25490635]
[1772127678479,4.01115355,1992.8,1992.0,0.0011]
[1772127678785,2.22509129,1992.9,1992.0,0.0011]
[1772127678786,4.01115355,1992.6,1992.0,0.0011]
[1772127680298,5.26585869,1992.5,1992.0,0.0011]
[1772127680700,5.63815355,1992.9,1992.0,0.0011]
[1772127681217,4.01115355,1992.8,1992.0,0.0011]
[1772127682614,5.26573276,1992.7,1992.0,0.0011]
[1772127683717,4.01115355,1992.6,1992.0,0.0011]
[1772127684095,3.4796705,1992.7,1991.9,0.0011]
[1772127684096,4.01115355,1992.4,1991.9,0.0011]
[1772127684418,4.01115355,1992.3,1991.9,0.0011]
[1772127684789,1.25489408,1992.2,1992.1,0.0011]
[1772127685094,4.01115355,1992.6,1992.1,0.0011]
[1772127685294,1.628,1992.5,1992.1,0.0011]
[1772127685826,4.01115355,1992.6,1992.1,0.0011]
[1772127687442,5.01835911,1992.7,1992.1,0.0011]
[1772127688043,6.64735911,1992.7,1992.1,0.0011]
[1772127688242,10.65851266,1992.7,1992.1,0.0011]
[1772127688763,4.01115355,1992.6,1992.1,0.0011]
[1772127689249,1.25470514,1992.5,1992.1,0.0011]
[1772127689549,5.26585869,1992.5,1992.1,0.0011]
[1772127689733,1.25467978,1992.6,1992.1,0.0011]
[1772127690155,4.01115355,1992.5,1992.1,0.0011]
[1772127691662,1.25476811,1992.4,1992.1,0.0011]
[1772127691833,1.25469841,1992.6,1992.1,0.0011]
[1772127692856,5.26585196,1992.6,1992.1,0.0011]
[1772127693055,1.25548246,1992.9,1992.1,3.9930197]
[1772127693936,1.25548246,1992.9,1992.2,5.24681378]
[1772127694144,4.01115355,1992.8,1992.1,0.0011]
[1772127695148,3.98798582,1992.7,1992.1,0.0011]
[1772127696047,1.25464217,1992.6,1992.1,0.0011]
[1772127696245,3.98798582,1992.5,1992.1,0.0011]
[1772127700173,3.94542621,1992.4,1992.1,0.0011]
[1772127700372,3.94542621,1992.3,1992.0,0.0011]
[1772127701752,1.64,1992.4,1992.0,0.0011]
[1772127703050,5.58542621,1992.4,1992.0,0.0011]
[1772127703281,3.94542621,1992.3,1992.0,0.0011]
[1772127703850,1.64,1992.4,1992.0,0.0011]
[1772127704488,5.58542621,1992.4,1992.0,0.0011]
[1772127705999,5.58542621,1992.4,1991.9,0.0011]
[1772127706000,3.94542621,1992.3,1991.9,0.0011]
[1772127706216,3.94542621,1992.3,1991.7,0.0011]
[1772127706696,3.94542621,1992.3,1991.7,3.9847307]
[1772127711973,3.94542621,1992.3,1991.8,0.0011]
[1772127712174,0.001,1992.2,1991.8,0.0011]
[1772127712767,3.94642621,1992.2,1991.8,0.0011]
[1772127713503,3.94542621,1991.7,1990.3,3.9836307]
[1772127713679,2.4991029,1991.8,1990.3,3.9836307]
[1772127713680,3.94542621,1991.6,1990.3,3.9836307]
[1772127713877,3.94542621,1991.6,1990.5,3.9836307]
[1772127714577,5.58442621,1991.8,1990.8,3.9836307]
[1772127716498,3.94542621,1991.7,1990.8,3.9836307]
[1772127720800,3.94542621,1991.5,1990.6,3.9836307]
[1772127720984,3.94542621,1991.8,1990.6,3.9836307]
[1772127723886,3.94542621,1991.8,1990.9,0.0011]
[1772127726128,3.94542621,1991.8,1990.6,0.0011]
[1772127726129,3.94542621,1991.4,1990.6,0.0011]
[1772127726414,3.94542621,1991.1,1990.2,0.0011]
[1772127727004,3.94542621,1990.9,1990.2,0.0011]
[1772127729211,3.94542621,1991.3,1990.2,3.9847307]
[1772127729390,3.94542621,1991.1,1990.2,3.9847307]
[1772127729716,4.21527583,1991.0,1990.2,0.0011]
[1772127730290,4.21527583,1990.8,1990.2,0.0011]
[1772127731320,5.84627583,1991.0,1990.2,3.84091255]
[1772127731615,4.21527583,1990.9,1990.2,3.84091255]
[1772127731816,2.22509129,1991.4,1990.2,3.84091255]
[1772127731817,5.84627583,1991.3,1990.2,3.84091255]
[1772127732623,4.21527583,1991.3,1990.2,3.84091255]
[1772127734322,4.21527583,1991.8,1990.5,3.83981255]
[1772127735323,4.21527583,1991.8,1990.6,3.83981255]
[1772127735793,4.21527583,1991.8,1990.6,3.84091255]
[1772127735993,4.21527583,1991.6,1990.6,3.84091255]
[1772127737303,0.001,1991.7,1990.6,3.84091255]
[1772127737520,0.001,1991.7,1990.8,3.83981255]
[1772127739529,4.21627583,1991.7,1990.8,3.83981255]
[1772127740306,0.001,1991.7,1990.9,3.83981255]
[1772127741734,0.001,1991.7,1991.1,3.83981255]
[1772127742454,1.25500566,1992.1,1991.2,3.83981255]
[1772127743256,1.25500566,1992.1,1991.3,1.25546125]
[1772127743457,4.21527583,1992.0,1991.0,5.09541805]
[1772127743747,4.21527583,1991.9,1991.0,5.09541805]
[1772127743942,4.21527583,1991.8,1990.9,1.25567371]
[1772127745341,4.21527583,1991.6,1990.6,5.09677248]
[1772127747344,4.21527583,1991.4,1990.6,5.09677248]
[1772127747542,1.25533517,1991.5,1990.7,3.83981255]
[1772127747768,1.25527214,1991.6,1990.7,3.83981255]
[1772127748471,1.25527214,1991.6,1990.7,3.84091255]
[1772127748785,1.25627214,1991.6,1990.7,3.84091255]
[1772127749501,1.25627214,1991.6,1990.8,1.25577657]
[1772127749772,0.001,1991.6,1990.9,3.83981255]
[1772127751667,4.21627583,1991.6,1990.9,5.09547374]
[1772127751880,4.21527583,1991.5,1990.7,5.18991255]
[1772127752044,4.21527583,1991.5,1990.7,0.0011]
[1772127753178,4.21527583,1991.3,1990.7,0.0011]
[1772127753673,1.2555243,1991.2,1990.7,0.0011]
[1772127754471,4.21527583,1991.1,1990.7,0.0011]
[1772127755888,5.47087481,1991.1,1990.7,0.0011]
[1772127756371,4.21527583,1991.1,1990.7,0.0011]
[1772127757155,1.255531,1991.2,1990.7,0.0011]
[1772127757561,1.627,1991.3,1990.7,4.19391929]
[1772127757882,2.88246612,1991.3,1990.8,1.25577657]
[1772127758173,2.88246612,1991.3,1990.7,5.44970823]
[1772127760899,2.88246612,1991.3,1990.8,0.0011]
[1772127761108,2.88246612,1991.3,1990.8,3.79126642]
[1772127761109,1.627,1991.3,1990.8,3.79126642]
[1772127762321,1.25539936,1991.4,1990.8,3.79126642]
[1772127762490,5.40742553,1991.4,1990.9,1.25571349]
[1772127762902,7.03832432,1991.6,1991.0,3.79016642]
[1772127763107,4.15302617,1991.6,1991.0,3.79016642]
[1772127763625,5.40830413,1991.6,1991.0,3.79016642]
[1772127765242,0.001,1991.6,1991.1,5.04575378]
[1772127766435,0.001,1991.6,1991.2,3.79016642]
[1772127767125,7.04009276,1992.0,1991.3,3.79016642]
[1772127767324,5.0199552,1992.1,1991.3,3.79016642]
[1772127767325,5.4079824,1992.2,1991.5,3.79016642]
[1772127768352,4.15302617,1992.2,1991.5,3.79016642]
[1772127768531,5.40792619,1992.2,1991.5,3.79016642]
[1772127769245,5.40660767,1992.7,1992.1,1.25495708]
[1772127769538,5.40660727,1992.7,1992.1,1.25495708]
[1772127771832,4.15202617,1992.4,1991.1,3.79016642]
[1772127772014,4.15202617,1992.3,1991.4,3.79016642]
[1772127772210,4.15202617,1992.2,1991.4,3.79016642]
[1772127772736,4.15202617,1992.2,1991.6,0.0011]
[1772127772914,0.001,1992.1,1991.6,0.0011]
[1772127773942,0.001,1992.1,1991.6,5.04653856]
[1772127774111,0.001,1992.1,1991.7,3.79016642]
[1772127775709,0.001,1992.1,1991.6,1.25637214]
[1772127776034,0.001,1992.1,1991.6,0.0011]
[1772127776231,4.15302617,1992.1,1991.6,0.0011]
[1772127778634,5.40799469,1992.1,1991.6,0.0011]
[1772127778834,4.15302617,1992.1,1991.6,0.0011]
[1772127779134,5.40798552,1992.1,1991.6,0.0011]
[1772127779642,0.001,1992.1,1991.6,3.79126642]
[1772127781419,0.001,1992.1,1991.8,3.79016642]
[1772127781759,4.15202617,1992.6,1991.8,3.79016642]
[1772127782057,5.40667198,1992.6,1991.8,3.79016642]
[1772127782349,2.88956215,1992.8,1991.8,3.79016642]
[1772127782730,4.15202617,1992.7,1991.8,3.79016642]
[1772127783535,4.15202617,1992.7,1992.0,3.79016642]
[1772127784027,2.88952739,1992.8,1992.0,3.79016642]
[1772127784624,7.04155356,1992.8,1992.0,3.79016642]
[1772127784821,4.15202617,1992.7,1991.9,1.25508308]
[1772127785022,4.15202617,1992.6,1991.8,5.04529233]
[1772127785222,7.04155356,1992.8,1991.9,3.79016642]
[1772127785646,7.04155356,1992.8,1992.0,5.0451865]
[1772127785947,0.001,1992.6,1992.1,3.79016642]
[1772127786650,0.001,1992.6,1992.2,3.79016642]
[1772127787926,0.001,1992.6,1992.3,1.25483109]
[1772127788230,0.001,1992.6,1992.2,5.045019]
[1772127788554,0.001,1992.6,1992.2,1.25485258]
[1772127788726,0.001,1992.6,1992.1,2.61592374]
[1772127788926,4.15302617,1992.6,1992.1,2.61592374]
[1772127789453,4.15302617,1992.6,1992.1,1.361]
[1772127789756,4.15302617,1992.6,1992.1,2.615945]
[1772127789949,5.40770592,1992.6,1992.0,1.25496718]
[1772127790257,5.40770592,1992.6,1991.8,1.25509844]
[1772127790258,4.01592805,1992.5,1991.8,1.25509844]
[1772127790966,0.001,1992.6,1992.2,3.89111404]
[1772127791147,0.001,1992.6,1992.3,3.89111404]
[1772127791837,0.001,1992.6,1992.4,1.25476811]
[1772127792230,0.001,1992.6,1992.3,1.25483109]
[1772127792431,4.01692805,1992.6,1991.8,6.51126013]
[1772127794047,5.27162897,1992.6,1991.8,6.51126013]
[1772127795071,4.01692805,1992.6,1991.9,3.89111404]
[1772127795240,0.001,1992.6,1992.0,3.89111404]
[1772127796460,0.001,1992.6,1992.1,5.14607112]
[1772127799235,0.001,1992.6,1992.1,6.51607112]
[1772127799663,0.001,1992.6,1992.2,3.89111404]
[1772127800943,0.001,1992.8,1992.2,3.89111404]
[1772127801665,0.001,1992.8,1992.3,5.14594513]
[1772127802862,4.01692805,1992.8,1992.2,1.25484444]
[1772127803063,4.01692805,1992.8,1992.1,6.51602653]
[1772127803867,0.001,1992.8,1992.2,3.89111404]
[1772127806341,0.001,1992.8,1992.4,3.89111404]
[1772127806540,0.001,1992.8,1992.4,5.26811404]
[1772127806967,0.001,1992.8,1992.4,1.377]
[1772127807167,4.01692805,1992.8,1992.4,1.377]
[1772127807957,4.01692805,1992.8,1992.1,2.63292284]
[1772127808346,5.27050726,1992.7,1992.1,2.63292284]
[1772127809369,5.27050726,1992.7,1991.9,0.0011]
[1772127809370,4.01592805,1992.5,1991.9,0.0011]
[1772127809559,4.01592805,1992.2,1991.5,0.0011]
[1772127809747,4.01592805,1992.1,1991.5,0.0011]
[1772127810071,4.01592805,1992.1,1991.3,1.3801]
[1772127810072,4.01592805,1991.8,1991.3,0.0011]
[1772127810271,4.01592805,1991.8,1991.3,0.0022]
[1772127810477,5.27113716,1991.7,1991.3,0.0022]
[1772127810773,1.25520911,1991.7,1991.3,0.0022]
[1772127810971,1.25520911,1991.7,1990.8,2.63581349]
[1772127810972,4.01592805,1991.6,1990.8,1.256872]
[1772127811175,4.01592805,1991.6,1991.0,0.0011]
[1772127811947,4.01592805,1991.6,1990.8,0.0011]
[1772127812157,4.01592805,1991.3,1990.8,0.0022]
[1772127812384,4.01592805,1991.1,1990.8,0.0011]
[1772127812685,4.01592805,1991.1,1990.6,0.0011]
[1772127813279,4.01592805,1991.1,1990.5,0.0011]
[1772127813457,4.01592805,1991.1,1990.5,0.0022]
[1772127813971,1.63,1991.0,1990.5,0.0022]
[1772127814853,2.88566649,1991.0,1990.5,0.0022]
[1772127815053,4.01592805,1990.9,1990.5,0.0022]
[1772127816545,1.25577657,1990.8,1990.5,0.0022]
[1772127820054,2.89277657,1990.8,1990.5,0.0011]
[1772127820256,6.63785888,1990.8,1990.6,0.0011]
[1772127820565,3.74508231,1990.7,1990.5,0.0011]
[1772127821290,2.89277657,1990.8,1990.5,0.0022]
[1772127822397,2.89277657,1990.8,1990.6,0.0011]
[1772127824676,3.74508231,1990.7,1990.4,0.0011]
[1772127824869,3.74508231,1990.6,1990.3,0.0011]
[1772127825057,5.39008231,1990.5,1990.3,0.0022]
[1772127825263,3.74508231,1990.4,1990.2,0.0011]
[1772127825691,1.645,1990.5,1990.2,0.0011]
[1772127826158,5.00085888,1990.8,1990.2,0.0011]
[1772127826357,1.646,1990.7,1990.2,0.0011]
[1772127827095,2.90185049,1990.7,1990.2,0.0011]
[1772127828412,1.647,1990.7,1990.2,3.84714103]
[1772127828997,5.00178758,1991.0,1990.2,3.84714103]
[1772127829162,5.00178758,1991.0,1990.2,0.0011]
[1772127829163,3.74508231,1990.9,1990.2,0.0011]
[1772127829361,1.25670527,1991.0,1990.2,0.0011]
[1772127829362,3.74508231,1990.7,1990.2,0.0011]
[1772127830258,3.74508231,1990.7,1990.2,1.25724593]
[1772127830758,3.74508231,1990.7,1990.2,0.0011]
[1772127831492,5.00096202,1990.7,1990.2,0.0011]
[1772127832066,5.00096202,1990.7,1990.1,1.23056828]
[1772127832477,3.74608231,1991.0,1990.2,3.84604103]
[1772127832674,5.0008396,1990.9,1990.2,3.84604103]
[1772127832878,3.74508231,1990.8,1990.2,3.84604103]
[1772127833402,1.25583965,1990.7,1990.2,3.84604103]
[1772127833774,5.00092196,1990.7,1990.0,6.47639792]
[1772127834174,3.74508231,1990.6,1990.2,0.0011]
[1772127834582,0.001,1990.6,1990.2,0.0011]
[1772127834909,1.65,1990.6,1990.2,0.0011]
[1772127836194,2.90592065,1990.6,1990.2,3.84714103]
[1772127837586,2.90590809,1990.6,1990.2,3.84714103]
[1772127838486,0.001,1990.6,1990.3,3.84604103]
[1772127841291,0.001,1990.6,1990.3,5.10212221]
[1772127841493,0.001,1990.6,1990.4,3.84604103]
[1772127841709,1.653,1990.9,1990.4,3.84604103]
[1772127842088,5.39808231,1990.9,1990.4,3.84604103]
[1772127842301,5.39808231,1990.9,1990.2,5.10329585]
[1772127842302,3.74508231,1990.8,1990.2,5.10329585]
[1772127843187,3.74508231,1990.8,1990.2,1.25725482]
[1772127843389,3.74508231,1990.8,1990.3,3.84604103]
[1772127843603,2.90871406,1990.9,1990.3,3.84604103]
[1772127844005,6.65379637,1990.9,1990.3,3.84604103]
[1772127845712,3.74508231,1990.8,1990.3,3.84604103]
[1772127845917,3.74508231,1990.8,1990.3,3.84714103]
[1772127846118,3.74608231,1990.8,1990.3,3.84714103]
[1772127846596,5.00191989,1990.8,1990.3,5.10322806]
[1772127846785,5.00191989,1990.8,1990.3,3.84714103]
[1772127847506,3.74508231,1990.7,1990.3,0.0011]
[1772127847711,5.40108231,1990.6,1990.3,0.0011]
[1772127848913,1.25596583,1990.5,1990.3,0.0011]
[1772127849121,6.65701831,1990.6,1990.3,0.0011]
[1772127849592,2.913936,1990.6,1990.3,0.0011]
[1772127851308,2.91392304,1990.6,1990.3,0.0011]
[1772127851497,2.91393074,1990.6,1990.3,0.0011]
[1772127852294,3.48658617,1990.5,1990.3,0.0011]
[1772127852507,3.48658617,1990.5,1990.0,0.0011]
[1772127853127,1.662,1990.4,1990.0,4.92790028]
[1772127853344,1.25615516,1990.2,1990.0,0.0011]
[1772127853501,1.25615516,1990.2,1989.8,3.6705266]
[1772127854441,2.91915516,1990.2,1989.8,3.6705266]
[1772127855440,2.91915516,1990.2,1989.6,3.6705266]
[1772127855946,2.91915516,1990.2,1989.7,3.6705266]
[1772127856129,1.665,1990.1,1989.7,3.6705266]
[1772127856823,1.666,1990.2,1989.7,3.6705266]
[1772127857641,1.25621828,1990.1,1989.7,3.6705266]
[1772127857843,1.25621828,1990.1,1989.9,0.0011]
[1772127858329,2.92215516,1990.2,1989.9,0.0011]
[1772127859629,8.00202463,1990.2,1989.8,0.0011]
[1772127859825,4.51543846,1990.2,1989.6,0.0011]
[1772127860031,1.5932833,1989.6,1989.0,3.6705266]
[1772127860345,3.48658617,1989.4,1988.7,3.47562794]
[1772127860537,3.48658617,1989.3,1988.7,3.47562794]
[1772127861144,3.48658617,1989.1,1988.7,0.0011]
[1772127861303,1.361,1989.2,1988.7,3.47241785]
[1772127861707,1.668,1989.3,1988.8,1.25703942]
[1772127862104,3.48658617,1989.7,1988.9,3.47241785]
[1772127862318,1.668,1989.5,1988.9,3.47241785]
[1772127862518,5.15458617,1989.5,1988.9,0.0011]
[1772127863546,5.15458617,1989.5,1988.9,3.52053679]
[1772127864148,3.48658617,1989.8,1989.1,3.51611894]
[1772127864365,1.25639672,1989.9,1989.1,3.51611894]
[1772127864535,1.25639672,1989.9,1989.2,3.51721894]
[1772127864740,3.48658617,1989.8,1989.1,3.51721894]
[1772127865534,3.48658617,1989.6,1989.1,0.0011]
[1772127866330,3.48658617,1989.6,1988.8,6.15580285]
[1772127866534,1.25659713,1989.5,1988.9,0.0011]
[1772127867947,1.669,1989.5,1988.9,3.5073609]
[1772127868647,4.74316906,1989.6,1989.0,4.75988847]
[1772127868853,4.74286316,1990.1,1989.1,3.50297545]
[1772127869056,3.48658617,1990.0,1989.1,3.50407545]
[1772127869748,3.48658617,1989.9,1989.1,3.50407545]
[1772127869959,3.48658617,1989.9,1989.0,1.25691302]
[1772127869960,3.48658617,1989.7,1989.2,0.0011]
[1772127870258,3.48658617,1989.6,1989.2,0.0011]
[1772127870457,3.48658617,1989.2,1989.0,0.0011]
[1772127870659,1.25691302,1989.0,1988.4,4.75390851]
[1772127870865,4.74349919,1989.0,1988.2,4.75398607]
[1772127871063,4.74349919,1989.0,1988.3,3.4966192]
[1772127871630,3.48658617,1988.9,1988.3,3.4966192]
[1772127871831,1.25688323,1989.1,1988.3,3.4966192]
[1772127872270,5.15658617,1989.2,1988.3,3.4966192]
[1772127872433,1.67,1989.2,1988.3,3.4966192]
[1772127872627,2.92678916,1989.2,1988.5,3.48445803]
[1772127873245,6.41337533,1989.2,1988.5,3.48445803]
[1772127873474,2.92669976,1989.4,1988.6,3.47842276]
[1772127874172,4.74299384,1989.8,1988.8,3.47244129]
[1772127874474,3.48658617,1989.7,1988.8,3.47244129]
[1772127874835,4.74302568,1989.8,1989.0,3.47244129]
[1772127875032,4.74301872,1989.8,1989.0,3.47244129]
[1772127875435,4.74300912,1989.8,1989.0,3.47244129]
[1772127875857,1.25726999,1990.1,1989.2,3.46227565]
[1772127876045,1.25726999,1990.1,1989.4,3.46227565]
[1772127876046,0.001,1990.1,1989.4,3.46227565]
[1772127876458,3.61806469,1990.5,1989.7,3.45543049]
[1772127876834,4.87409362,1990.4,1989.7,4.71183989]
[1772127877240,3.61806469,1990.6,1989.8,3.44964488]
[1772127878056,3.61806469,1990.6,1989.7,2.8496927]
[1772127878249,6.69341048,1990.7,1989.4,3.4439231]
[1772127878250,3.61806469,1990.4,1989.4,3.4439231]
[1772127878652,5.28706469,1990.4,1989.4,3.4439231]
[1772127878962,4.87415673,1990.3,1989.5,3.4439231]
[1772127879645,3.61806469,1990.3,1989.5,3.4439231]
[1772127881272,4.87419249,1990.3,1989.6,1.25653397]
[1772127882553,0.001,1990.2,1989.6,1.25653397]
[1772127883259,0.001,1990.2,1989.8,1.25640767]
[1772127883846,1.669,1990.6,1989.8,1.25640767]
[1772127883847,6.52113269,1990.7,1989.9,5.00540933]
[1772127884271,3.59626683,1990.6,1989.8,1.25640767]
[1772127885080,3.59626683,1990.6,1989.8,4.66312193]
[1772127885451,1.25595405,1990.6,1989.8,4.66312193]
[1772127885649,3.59626683,1990.5,1989.6,3.40140889]
[1772127885862,3.59626683,1990.5,1989.6,4.65794286]
[1772127886847,0.001,1990.8,1989.7,1.5932833]
[1772127887090,0.001,1990.8,1990.3,3.39607749]
[1772127889083,0.001,1990.8,1990.4,1.25602893]
[1772127890373,0.001,1990.8,1989.9,5.02525236]
[1772127890374,3.59726683,1990.8,1990.0,3.37524043]
[1772127890574,3.59726683,1990.8,1989.9,4.63153588]
[1772127891680,3.59626683,1990.6,1989.9,4.63153588]
[1772127892385,4.85309297,1990.8,1990.0,3.36505088]
[1772127892580,0.001,1990.8,1990.0,3.36505088]
[1772127892766,0.001,1990.8,1990.2,4.95833418]
[1772127892967,0.001,1990.8,1990.3,3.36505088]
[1772127893690,0.001,1990.8,1990.4,1.25602893]
[1772127894758,0.001,1990.8,1990.4,4.61106653]
[1772127895059,0.001,1990.7,1990.4,1.25602893]
[1772127898087,0.001,1990.7,1990.3,5.02411575]
[1772127899982,0.001,1990.7,1990.3,1.25609204]
[1772127900284,0.001,1990.7,1990.2,4.7440376]
[1772127900496,0.001,1990.7,1990.0,4.58338876]
[1772127900497,3.59726683,1990.7,1990.0,4.58338876]
[1772127901169,0.001,1990.7,1990.2,1.5932833]
[1772127901495,0.001,1991.0,1990.6,3.32135157]
[1772127903196,0.001,1991.0,1990.7,1.25583965]
[1772127904288,0.001,1991.0,1990.7,4.56338449]
[1772127904488,3.59626683,1991.3,1990.8,3.30754484]
[1772127904688,4.85173175,1991.3,1990.8,3.30754484]
[1772127905102,3.59626683,1991.3,1990.8,3.30754484]
[1772127905303,3.59626683,1991.3,1990.9,1.25571349]
[1772127905466,3.59626683,1991.7,1991.0,3.30198655]
[1772127906310,3.59626683,1991.2,1990.0,3.29857354]
[1772127906595,3.59626683,1991.0,1990.0,4.55481079]
[1772127906797,3.59626683,1990.9,1990.8,0.0011]
[1772127906994,3.59726683,1990.9,1990.8,0.0011]
[1772127907172,3.59726683,1990.9,1990.0,4.55481079]
[1772127907173,3.59726683,1990.9,1990.0,3.29857354]
[1772127907380,3.59626683,1990.7,1990.0,4.55485355]
[1772127907572,3.59626683,1990.7,1990.5,0.0011]
[1772127908711,4.85298283,1990.9,1990.5,0.0011]
[1772127908884,3.59626683,1990.8,1990.5,0.0011]
[1772127909611,3.661539,1990.7,1990.5,0.0011]
[1772127910696,3.661539,1990.7,1990.0,1.25738001]
[1772127912079,3.661539,1990.6,1990.0,1.25738001]
[1772127914104,0.001,1990.9,1990.0,1.25738001]
[1772127914105,3.661539,1990.5,1990.0,1.25738001]
[1772127915882,3.661539,1990.5,1990.0,0.0011]
[1772127916082,3.661539,1990.3,1990.0,0.0011]
[1772127917914,1.666,1990.5,1990.0,3.25017035]
[1772127918101,3.662539,1990.9,1990.2,3.37155994]
[1772127918305,4.91826957,1990.9,1990.2,3.37155994]
[1772127918611,4.91826307,1990.9,1990.2,3.37155994]
[1772127918820,4.91825824,1990.9,1990.2,3.37155994]
[1772127919201,3.661539,1990.8,1990.1,2.66121828]
[1772127919410,3.661539,1990.8,1990.1,6.03277822]
[1772127919586,3.661539,1990.8,1990.3,0.0011]
[1772127920418,1.669,1990.9,1990.3,3.37265994]
[1772127920725,1.669,1990.9,1990.3,0.0011]
[1772127920726,3.661539,1990.8,1990.3,0.0011]
[1772127922360,4.91737865,1990.7,1990.3,0.0011]
[1772127922641,3.661539,1990.6,1990.3,0.0011]
[1772127923720,3.662539,1990.9,1990.3,0.0011]
[1772127923924,4.91826094,1990.9,1990.3,3.37265994]
[1772127924623,4.91826094,1990.9,1990.4,1.25602893]
[1772127924828,3.662539,1990.9,1990.4,1.25602893]
[1772127926616,4.91826714,1990.9,1990.3,4.628701]
[1772127926821,0.001,1990.9,1990.4,3.37155994]
[1772127927233,1.25671435,1990.9,1990.4,3.37155994]
[1772127927416,0.001,1990.9,1990.4,3.37155994]
[1772127927831,1.25671378,1990.9,1990.4,3.37155994]
[1772127928034,3.661539,1990.8,1990.3,1.25719103]
[1772127928950,3.661539,1990.8,1990.3,0.0011]
[1772127929877,0.001,1990.9,1990.3,3.37265994]
[1772127931264,0.001,1990.9,1990.4,3.37155994]
[1772127931559,3.662539,1990.8,1990.3,1.25714292]
[1772127932778,0.001,1990.8,1990.3,4.62870286]
[1772127932929,0.001,1990.8,1990.4,3.37155994]
[1772127933127,0.001,1990.8,1990.5,1.25596583]
[1772127933331,3.661539,1991.2,1990.6,3.37155994]
[1772127934228,3.661539,1991.1,1990.5,1.25596583]
[1772127934427,3.661539,1990.9,1990.4,1.25598109]
[1772127934635,3.661539,1990.9,1990.3,5.02534078]
[1772127934636,3.661539,1990.9,1990.3,4.62870504]
[1772127934838,3.661539,1991.1,1990.4,3.37155994]
[1772127935468,3.661539,1991.1,1990.6,3.47591666]
[1772127935960,6.50752775,1991.3,1990.6,3.47591666]
[1772127937269,3.5810256,1991.2,1990.5,1.25596583]
[1772127937471,4.83657181,1991.2,1990.5,4.73188249]
[1772127937835,4.8365683,1991.2,1990.6,3.47591666]
[1772127938064,1.671,1991.3,1990.6,3.47591666]
[1772127938365,4.83644517,1991.4,1990.6,3.47591666]
[1772127938538,3.5810256,1991.3,1990.6,3.47591666]
[1772127939834,4.83651828,1991.3,1990.7,1.25583965]
[1772127940569,3.50889981,1991.2,1990.7,1.25583965]
[1772127941114,3.50889981,1991.2,1990.6,3.47591666]
[1772127941435,3.50889981,1991.2,1990.6,4.73180054]
[1772127941670,3.50889981,1991.2,1990.6,1.25588388]
[1772127941836,3.50889981,1991.2,1990.6,3.60693714]
[1772127942650,3.50889981,1991.1,1990.6,3.60693714]
[1772127942968,3.50889981,1991.1,1990.7,0.0011]
[1772127943170,3.50889981,1991.1,1990.3,0.0011]
[1772127943473,3.50889981,1991.1,1990.5,0.0011]
[1772127943474,3.50989981,1991.1,1990.5,0.0011]
[1772127943876,3.50889981,1990.9,1990.5,0.0011]
[1772127944070,1.673,1990.8,1990.5,0.0011]
[1772127944571,5.18189981,1990.8,1990.5,0.0011]
[1772127945580,5.18189981,1990.8,1990.3,3.59523564]
[1772127945955,3.50889981,1991.0,1990.5,3.60693714]
[1772127946161,1.25660623,1991.1,1990.5,3.60693714]
[1772127946382,4.76550604,1991.1,1990.5,3.60693714]
[1772127946750,1.25660623,1991.1,1990.5,3.60693714]
[1772127946962,4.76550604,1991.1,1990.5,3.60693714]